bitfinex-derivatives/quotes_SOLF0:USTF0_20260126
["timestamp","ask_amount","ask_price","bid_price","bid_amount"]
[1769387909292,2.29556233,119.2,119.14,42.02647327]
[1769387909595,46.12555778,119.2,119.14,42.02647327]
[1769387910092,0.0640576,119.18,119.14,42.02647327]
[1769387910295,0.0640576,119.18,119.16,0.05576126]
[1769387912597,0.0640576,119.18,119.14,42.02647327]
[1769387914299,42.83209325,119.18,119.12,44.75932979]
[1769387914500,45.06359798,119.16,119.1,42.46376746]
[1769387914798,45.06359798,119.15,119.1,42.46376746]
[1769387914998,42.76803565,119.18,119.11,2.29556233]
[1769387915193,45.06359798,119.18,119.12,42.46376746]
[1769387915593,45.06359798,119.18,119.13,0.05819813]
[1769387916700,52.62419798,119.18,119.13,0.05819813]
[1769387916896,0.05441026,119.17,119.13,42.52196559]
[1769387921408,0.05441026,119.17,119.13,44.81752792]
[1769387927702,0.05441026,119.17,119.13,42.52196559]
[1769387930609,45.06359798,119.16,119.1,42.46376746]
[1769387930813,45.06359798,119.15,119.1,42.46376746]
[1769387931407,42.76803565,119.15,119.1,42.46376746]
[1769387931609,52.62469798,119.17,119.1,42.46376746]
[1769387932014,0.06030824,119.14,119.1,42.46376746]
[1769387938016,0.06030824,119.14,119.1,44.75932979]
[1769387938318,52.62469798,119.17,119.12,42.46376746]
[1769387939823,50.32913565,119.17,119.12,42.46376746]
[1769387940620,42.76803565,119.17,119.12,42.46376746]
[1769387942519,42.76803565,119.19,119.12,44.75932979]
[1769387944830,45.06359798,119.19,119.12,44.75932979]
[1769387948230,44.0785596,119.17,119.12,42.46376746]
[1769387948420,46.37412193,119.17,119.12,42.46376746]
[1769387949228,2.29556233,119.16,119.12,42.46376746]
[1769387952737,44.0785596,119.17,119.09,43.31110362]
[1769387952738,2.29556233,119.15,119.09,43.31110362]
[1769387953136,44.0785596,119.16,119.09,43.31110362]
[1769387953337,2.29556233,119.15,119.09,43.31110362]
[1769387957738,45.31216545,119.15,119.09,43.31110362]
[1769387958541,2.29556233,119.14,119.09,43.31110362]
[1769387959145,2.29556233,119.13,119.09,43.31110362]
[1769387960544,2.29556233,119.12,119.09,43.31110362]
[1769387961546,2.29556233,119.12,119.06,41.74065066]
[1769387962540,2.29556233,119.13,119.06,44.03621299]
[1769387964543,50.58150312,119.11,119.06,41.74065066]
[1769387964748,52.87706545,119.11,119.06,41.74065066]
[1769387965345,52.87576545,119.13,119.06,44.03621299]
[1769387965547,52.87923817,119.13,119.06,44.03968571]
[1769387966250,9.86323505,119.12,119.06,41.74065066]
[1769387966451,52.87983817,119.12,119.06,41.74065066]
[1769387966745,2.29903505,119.11,119.06,41.74065066]
[1769387969050,50.58080312,119.12,119.06,41.74065066]
[1769387969352,52.87983817,119.12,119.06,41.74065066]
[1769387970446,9.86383505,119.11,119.06,41.74065066]
[1769387970646,43.01660312,119.12,119.04,41.74065066]
[1769387970647,45.31563817,119.1,119.04,41.74065066]
[1769387971045,121.5,119.15,119.04,41.74065066]
[1769387971046,45.31563817,119.09,119.04,41.74065066]
[1769387971250,45.31563817,119.06,118.99,41.74065066]
[1769387971845,45.31563817,119.05,118.99,41.74065066]
[1769387972451,43.01660312,119.05,118.99,44.03968571]
[1769387973550,7.5681,119.06,118.99,44.03968571]
[1769387973746,9.86713505,119.06,119.0,43.22242178]
[1769387973953,51.08677566,119.06,119.0,43.22242178]
[1769387974456,51.08677566,119.06,119.0,40.92338673]
[1769387978548,2.29903505,119.05,119.0,40.92338673]
[1769387978850,43.51867566,119.04,118.98,40.92338673]
[1769387979056,43.51867566,119.03,118.96,40.92338673]
[1769387979253,43.51867566,119.03,118.96,43.22242178]
[1769387979450,43.51867566,119.03,118.96,40.92338673]
[1769387979853,41.21964061,119.03,118.96,43.22242178]
[1769387980056,41.21964061,119.03,118.98,40.92338673]
[1769387980256,41.21964061,119.05,119.0,40.92338673]
[1769387984152,7.5667,119.08,119.0,43.22242178]
[1769387984459,41.21964061,119.09,119.03,40.92338673]
[1769387985452,41.21964061,119.09,119.03,43.22242178]
[1769387988157,43.51867566,119.09,119.03,40.92338673]
[1769387988359,51.08487566,119.09,119.01,43.22242178]
[1769387989660,51.08487566,119.09,119.02,2.29903505]
[1769387990152,43.51867566,119.08,119.01,40.92338673]
[1769387990553,43.51867566,119.08,119.01,43.22242178]
[1769387991149,43.51867566,119.08,119.01,40.92338673]
[1769387991358,41.21964061,119.08,119.01,43.22242178]
[1769387991559,43.51867566,119.08,119.01,43.22242178]
[1769387991855,43.51867566,119.06,118.99,40.92338673]
[1769387992055,43.51867566,119.06,118.99,43.22242178]
[1769387995358,51.08697566,119.06,118.99,43.22242178]
[1769387997459,43.51867566,119.05,118.99,40.92338673]
[1769387999162,41.21964061,119.05,118.99,40.92338673]
[1769387999959,41.21964061,119.05,118.99,43.22242178]
[1769388000554,2.29903505,119.08,119.0,43.22242178]
[1769388000760,41.21964061,119.07,119.01,43.22242178]
[1769388001065,9.86593505,119.08,119.02,43.22242178]
[1769388001066,7.5669,119.08,119.02,43.22242178]
[1769388003866,46.63736882,119.08,119.02,43.22242178]
[1769388004867,2.29903505,119.09,119.02,43.22242178]
[1769388005064,2.29903505,119.09,119.04,38.78591146]
[1769388005264,299.05046882,119.1,119.04,38.78591146]
[1769388005465,299.05046882,119.1,119.04,41.08494651]
[1769388006267,46.63496882,119.12,119.06,38.78591146]
[1769388006469,41.36950387,119.14,119.08,38.78591146]
[1769388006865,39.07046882,119.14,119.08,41.08494651]
[1769388008072,174.09150387,119.16,119.1,38.78591146]
[1769388008565,2.29903505,119.17,119.1,41.08494651]
[1769388008760,41.36950387,119.18,119.11,41.08494651]
[1769388009364,0.06316563,119.16,119.11,41.08494651]
[1769388009763,0.06316563,119.16,119.11,38.78591146]
[1769388010560,2.36220068,119.16,119.11,38.78591146]
[1769388010766,41.4326695,119.16,119.11,38.78591146]
[1769388014370,0.06316563,119.16,119.11,38.78591146]
[1769388018764,0.06316563,119.16,119.11,41.08494651]
[1769388025575,0.06316563,119.16,119.11,41.08309051]
[1769388029685,0.06316563,119.16,119.11,38.78591146]
[1769388031995,2.36034468,119.16,119.11,38.78591146]
[1769388032892,2.29717905,119.15,119.11,38.78591146]
[1769388036298,40.69101284,119.16,119.11,38.78591146]
[1769388036892,2.36034468,119.16,119.11,38.78591146]
[1769388037097,0.06316563,119.16,119.11,38.78591146]
[1769388039803,2.36034468,119.16,119.11,38.78591146]
[1769388043002,45.97025378,119.16,119.11,38.78591146]
[1769388043194,2.29717905,119.14,119.11,38.53979646]
[1769388043799,2.29717905,119.15,119.11,38.53979646]
[1769388045306,45.97025378,119.16,119.11,38.53979646]
[1769388046006,2.29717905,119.15,119.11,38.53979646]
[1769388049711,45.97025378,119.16,119.11,38.53979646]
[1769388052808,2.29717905,119.15,119.11,38.53979646]
[1769388053516,0.06316563,119.16,119.11,38.53979646]
[1769388055716,2.36034468,119.16,119.11,38.53979646]
[1769388056117,2.29717905,119.15,119.11,38.53979646]
[1769388057918,2.29717905,119.14,119.11,38.53979646]
[1769388058414,36.0483091,119.13,119.08,34.17939408]
[1769388058620,2.29717905,119.12,119.08,34.17939408]
[1769388059720,0.0636298,119.11,119.08,34.17939408]
[1769388060919,2.29717905,119.1,119.01,7.5706]
[1769388061223,2.29717905,119.1,119.03,2.29717905]
[1769388061813,2.29717905,119.09,119.02,2.29717905]
[1769388062522,7.565,119.11,119.04,0.06305336]
[1769388062822,2.29717905,119.1,119.04,0.06305336]
[1769388063021,2.29717905,119.1,119.05,34.17939408]
[1769388064830,2.29717905,119.11,119.05,34.17939408]
[1769388065821,2.29717905,119.11,119.07,0.05372036]
[1769388066011,2.29717905,119.11,119.07,34.30593351]
[1769388066922,32.53803395,119.14,119.07,34.30593351]
[1769388067119,2.29717905,119.12,119.07,34.30593351]
[1769388067324,2.29717905,119.11,119.07,34.30593351]
[1769388067521,2.29717905,119.11,119.07,34.25221315]
[1769388067722,2.29717905,119.1,119.07,34.25221315]
[1769388067924,2.29717905,119.1,119.08,0.05760311]
[1769388068125,2.29717905,119.09,119.03,34.25221315]
[1769388069520,0.06241109,119.07,119.03,34.25221315]
[1769388069716,2.29717905,119.06,119.01,34.25221315]
[1769388070715,2.29717905,119.06,119.03,34.25221315]
[1769388072127,2.29717905,119.07,119.03,34.25221315]
[1769388073028,2.29717905,119.07,119.04,0.05759623]
[1769388076325,2.29717905,119.07,119.04,33.20191416]
[1769388076520,2.29717905,119.07,119.01,2.29717905]
[1769388076724,2.29717905,119.06,118.99,333.6142136]
[1769388076920,2.29717905,119.06,118.99,331.31703455]
[1769388077230,2.29717905,119.06,118.99,333.6142136]
[1769388078128,2.29717905,119.06,119.0,2.29717905]
[1769388078328,2.29717905,119.06,119.01,0.06298674]
[1769388078523,2.29717905,119.06,119.02,33.14431793]
[1769388079521,2.29717905,119.07,119.02,33.14431793]
[1769388079718,2.29717905,119.08,119.02,33.14431793]
[1769388080527,2.29717905,119.08,119.04,0.05623142]
[1769388081132,2.29717905,119.08,119.04,33.20054935]
[1769388081629,2.29717905,119.1,119.04,33.20054935]
[1769388082628,2.29717905,119.11,119.04,35.4977284]
[1769388083031,117.6514,119.14,119.06,33.14431793]
[1769388083032,207.35255763,119.14,119.06,33.14431793]
[1769388083331,2.29717905,119.12,119.06,33.14431793]
[1769388084138,2.29717905,119.12,119.08,0.0611884]
[1769388084632,2.29717905,119.12,119.08,33.20550633]
[1769388084823,2.29717905,119.13,119.08,33.20550633]
[1769388085220,176.55717905,119.14,119.08,33.20550633]
[1769388085424,2.29717905,119.15,119.08,35.50268538]
[1769388086234,35.38973668,119.16,119.1,33.14431793]
[1769388087129,35.38973668,119.16,119.12,0.06248385]
[1769388087532,35.39026783,119.16,119.12,0.06248385]
[1769388088229,2.2977102,119.15,119.1,33.14431793]
[1769388088431,2.35133136,119.15,119.1,33.14431793]
[1769388091643,35.39026783,119.14,119.11,0.06178778]
[1769388091847,35.39026783,119.14,119.08,33.14431793]
[1769388091848,2.2977102,119.13,119.08,33.14431793]
[1769388093334,2.36014121,119.12,119.06,33.75542957]
[1769388093541,2.36014121,119.12,119.06,31.45771937]
[1769388095135,2.36014121,119.12,119.06,33.75542957]
[1769388096142,2.36014121,119.12,119.06,31.45771937]
[1769388102749,2.2977102,119.11,119.06,31.45771937]
[1769388102946,2.36014121,119.12,119.06,31.45771937]
[1769388104947,0.06243101,119.12,119.06,31.45771937]
[1769388105152,2.36014121,119.12,119.06,31.45771937]
[1769388107855,34.27622273,119.1,119.04,33.75542957]
[1769388108052,34.27622273,119.1,119.04,31.45771937]
[1769388108754,0.06249747,119.08,119.04,31.45771937]
[1769388109652,2.36020767,119.08,119.04,31.45771937]
[1769388110058,2.2977102,119.07,119.04,31.45771937]
[1769388110254,0.06249747,119.08,119.04,31.45771937]
[1769388112557,2.36020767,119.08,119.04,31.45771937]
[1769388112961,2.2977102,119.07,119.04,31.45771937]
[1769388114260,2.2977102,119.06,119.01,31.45771937]
[1769388114565,2.2977102,119.05,119.01,31.45771937]
[1769388115156,0.05995072,119.04,119.01,31.45771937]
[1769388117164,31.97851253,119.16,119.04,31.45771937]
[1769388117367,2.2977102,119.12,119.04,31.45771937]
[1769388117562,2.2977102,119.1,119.04,31.45771937]
[1769388118661,0.06041096,119.08,119.04,31.45771937]
[1769388121171,0.06041096,119.08,119.04,33.75542957]
[1769388122275,32.03892349,119.08,119.02,31.45771937]
[1769388126275,142.35892349,119.08,119.02,31.45771937]
[1769388128370,32.03892349,119.08,119.02,31.45771937]
[1769388128571,251.57892349,119.08,119.02,31.45771937]
[1769388128875,31.47950319,119.07,119.0,33.61438235]
[1769388129079,33.77721339,119.07,119.0,31.31667215]
[1769388129874,31.54393731,119.05,119.0,31.31667215]
[1769388131881,31.54393731,119.05,119.01,0.05306922]
[1769388132385,33.84164751,119.05,119.01,0.05306922]
[1769388133183,31.54393731,119.05,119.01,0.05306922]
[1769388134587,366.82393731,119.05,119.01,0.05306922]
[1769388135293,366.84393731,119.05,119.01,0.05306922]
[1769388136189,335.3,119.04,119.01,0.05306922]
[1769388136384,31.54393731,119.05,119.01,0.05306922]
[1769388136690,146.14,119.04,119.01,0.05306922]
[1769388138279,266.96,119.04,119.01,0.05306922]
[1769388138892,298.22731635,119.04,119.01,0.05306922]
[1769388139586,7.63313412,119.05,119.01,0.05306922]
[1769388139790,159.74443412,119.05,119.01,0.05306922]
[1769388143693,33.56502655,119.02,118.89,117.8889]
[1769388143894,2.2977102,119.0,118.92,2.2977102]
[1769388144483,2.2977102,118.99,118.91,324.27289964]
[1769388145694,2.2977102,118.99,118.92,23.33061062]
[1769388146092,2.2977102,118.99,118.92,25.62832082]
[1769388147600,2.30425352,118.99,118.92,23.33061062]
[1769388150695,2.30425352,118.97,118.92,23.33061062]
[1769388151093,2.30425352,118.95,118.92,23.33061062]
[1769388152198,2.30425352,118.95,118.86,117.9161]
[1769388152199,33.57156987,118.95,118.89,23.55155118]
[1769388152393,2.30425352,118.93,118.89,23.55155118]
[1769388154899,31.26731635,118.95,118.89,23.55155118]
[1769388155205,2.30425352,118.94,118.89,23.55155118]
[1769388157998,2.30425352,118.92,118.86,23.86697004]
[1769388158505,30.16265625,118.93,118.86,23.86697004]
[1769388158700,2.30425352,118.93,118.86,23.86697004]
[1769388159207,2.30425352,118.93,118.86,31.44727004]
[1769388159396,2.30425352,118.93,118.87,23.89953514]
[1769388160003,32.46690977,118.93,118.87,23.89953514]
[1769388161605,2.30425352,118.91,118.87,23.89953514]
[1769388164211,32.46690977,118.92,118.87,23.89953514]
[1769388165310,30.16265625,118.99,118.9,24.08448892]
[1769388165507,2.30425352,118.98,118.9,24.08448892]
[1769388165709,32.46690977,118.98,118.9,24.08448892]
[1769388166408,2.30425352,118.96,118.9,24.08448892]
[1769388167615,32.46690977,118.96,118.9,24.08448892]
[1769388170224,32.46690977,118.94,118.88,24.2279197]
[1769388170926,2.30425352,118.92,118.88,24.2279197]
[1769388171326,32.46690977,118.92,118.86,24.25556871]
[1769388174223,2.30425352,118.9,118.85,24.33659128]
[1769388174825,0.05564044,118.89,118.85,24.33659128]
[1769388177328,2.30425352,118.91,118.87,24.35955811]
[1769388177519,30.16265625,118.93,118.87,24.35955811]
[1769388177520,32.46690977,118.93,118.87,24.35955811]
[1769388178525,32.46690977,118.93,118.85,26.71530494]
[1769388178727,32.46690977,118.91,118.85,24.41105142]
[1769388180023,0.05530499,118.89,118.85,24.41105142]
[1769388181129,2.30425352,118.88,118.83,24.51899456]
[1769388181331,32.46690977,118.88,118.83,24.51899456]
[1769388183236,2.30425352,118.87,118.83,24.51899456]
[1769388183631,32.46690977,118.88,118.83,24.51899456]
[1769388183835,30.16265625,118.88,118.83,24.51899456]
[1769388184138,0.06017961,118.87,118.83,24.51899456]
[1769388184932,0.06017961,118.87,118.81,24.573764]
[1769388185238,32.69678048,118.87,118.81,24.573764]
[1769388186940,40.27698048,118.87,118.81,24.573764]
[1769388187341,30.39252696,118.87,118.81,24.573764]
[1769388188441,32.69678048,118.87,118.81,24.573764]
[1769388192545,30.39252696,118.87,118.81,24.573764]
[1769388193746,30.39252696,118.87,118.81,26.87801752]
[1769388194245,30.39252696,118.87,118.81,24.573764]
[1769388195249,32.69678048,118.87,118.81,24.573764]
[1769388195949,30.39252696,118.87,118.81,26.87801752]
[1769388197750,0.06017961,118.87,118.82,27.21500159]
[1769388198650,31.9723627,118.87,118.82,27.21500159]
[1769388199048,31.9723627,118.87,118.8,2.30425352]
[1769388199253,34.27661622,118.87,118.8,27.23528841]
[1769388199452,34.21643661,118.87,118.8,24.93103489]
[1769388199652,34.21643661,118.87,118.8,27.23528841]
[1769388199855,0.05815378,118.85,118.8,27.23528841]
[1769388205658,0.05815378,118.85,118.82,25.06647834]
[1769388206957,34.21643661,118.89,118.82,27.37073186]
[1769388207156,34.21643661,118.89,118.82,27.43413618]
[1769388209666,34.22046514,118.89,118.82,27.43816471]
[1769388210559,31.91218309,118.89,118.83,27.40889151]
[1769388210867,34.22046514,118.91,118.85,25.10060946]
[1769388211465,34.22046514,118.91,118.87,0.06286524]
[1769388214666,31.91218309,118.91,118.87,0.06286524]
[1769388214867,2.30828205,118.9,118.87,0.06286524]
[1769388215969,34.22046514,118.91,118.87,0.06286524]
[1769388216572,32.86611927,118.89,118.82,27.60056336]
[1769388217866,0.06090782,118.87,118.82,27.60056336]
[1769388220875,0.06090782,118.87,118.82,25.29228131]
[1769388222473,0.06090782,118.87,118.83,0.05404066]
[1769388223973,30.61874504,118.87,118.83,0.05404066]
[1769388224871,32.92702709,118.87,118.83,0.05404066]
[1769388225074,2.30828205,118.85,118.8,25.4170021]
[1769388225272,30.55783722,118.85,118.8,25.4170021]
[1769388225468,32.86611927,118.85,118.8,25.4170021]
[1769388225771,32.86611927,118.83,118.78,25.43182885]
[1769388225971,30.55783722,118.83,118.78,25.43182885]
[1769388226468,0.0632649,118.82,118.78,25.43182885]
[1769388226875,30.55783722,118.8,118.74,65.23556011]
[1769388227068,32.86611927,118.8,118.74,65.23556011]
[1769388227977,0.05986061,118.78,118.74,65.23556011]
[1769388231879,0.05986061,118.78,118.75,25.51794454]
[1769388232084,32.86611927,118.82,118.75,25.51794454]
[1769388232476,30.55783722,118.82,118.75,25.51794454]
[1769388232781,32.86611927,118.8,118.74,65.32077321]
[1769388232972,2.30828205,118.79,118.74,65.32077321]
[1769388233873,0.05318229,118.78,118.74,65.32077321]
[1769388235684,0.05318229,118.78,118.75,25.57298299]
[1769388236185,0.05318229,118.78,118.75,27.88126504]
[1769388236784,0.05318229,118.78,118.76,2.30828205]
[1769388238282,0.05318229,118.78,118.75,27.88126504]
[1769388240677,0.05318229,118.78,118.75,25.57298299]
[1769388243183,0.05318229,118.78,118.74,39.78926537]
[1769388243184,30.58718038,118.78,118.74,39.78926537]
[1769388245181,0.05318229,118.78,118.74,42.09754742]
[1769388245381,0.05318229,118.78,118.74,67.87548292]
[1769388245981,2.30828205,118.81,118.74,65.52508589]
[1769388245982,30.53399809,118.81,118.74,65.52508589]
[1769388246182,30.53399809,118.8,118.75,0.05877873]
[1769388246484,9.89228205,118.81,118.75,25.80560316]
[1769388246785,32.84228014,118.82,118.75,28.05510648]
[1769388247284,32.84228014,118.82,118.77,0.05669485]
[1769388248487,30.53399809,118.82,118.77,2.3649769]
[1769388248788,32.84228014,118.84,118.77,28.13342812]
[1769388248989,30.53399809,118.84,118.77,28.13342812]
[1769388249490,30.53399809,118.84,118.78,28.08714173]
[1769388250287,30.53399809,118.84,118.78,25.77885968]
[1769388250483,30.53399809,118.84,118.78,28.08714173]
[1769388250685,30.53399809,118.84,118.8,0.05676031]
[1769388251281,30.53399809,118.87,118.8,28.15420621]
[1769388251481,30.53399809,118.87,118.82,28.10749539]
[1769388251683,30.53399809,118.89,118.83,2.30828205]
[1769388251886,30.53399809,118.89,118.84,2.30828205]
[1769388252496,32.84228014,118.93,118.86,28.10749539]
[1769388252793,30.53399809,118.93,118.88,2.30828205]
[1769388253087,9.88278205,118.96,118.89,2.30828205]
[1769388253290,30.53399809,118.95,118.89,2.30828205]
[1769388253486,30.53399809,118.95,118.89,2.36312002]
[1769388253698,32.84228014,118.95,118.89,0.05483797]
[1769388257392,34.34136473,118.94,118.89,0.05483797]
[1769388258485,34.34136473,118.93,118.89,0.05483797]
[1769388259083,32.03308268,118.93,118.89,0.05483797]
[1769388259288,34.34136473,118.9,118.82,2.30828205]
[1769388259488,34.34136473,118.89,118.82,2.30828205]
[1769388262591,34.34136473,118.89,118.81,28.11705274]
[1769388263000,34.34136473,118.88,118.81,28.11705274]
[1769388263398,0.05412577,118.86,118.81,28.11705274]
[1769388263598,0.05412577,118.86,118.82,2.30828205]
[1769388263798,0.05412577,118.86,118.79,25.85648255]
[1769388263799,32.08720845,118.86,118.79,25.85648255]
[1769388264106,32.08720845,118.86,118.8,2.30828205]
[1769388264294,32.03308268,118.86,118.8,2.30828205]
[1769388265701,32.03308268,118.86,118.79,28.1647646]
[1769388265896,34.34136473,118.86,118.79,28.1647646]
[1769388266099,2.30828205,118.85,118.79,25.85648255]
[1769388266297,7.5802,118.87,118.81,25.87398555]
[1769388266494,34.34136473,118.88,118.81,28.1822676]
[1769388269606,34.34162333,118.88,118.81,28.1825262]
[1769388270405,34.34162333,118.88,118.82,2.30854065]
[1769388270901,32.03308268,118.88,118.83,2.30854065]
[1769388271095,2.30854065,118.91,118.84,2.30854065]
[1769388271306,34.34162333,118.9,118.82,25.91683542]
[1769388271504,34.34162333,118.9,118.83,28.22537607]
[1769388271907,0.05477159,118.87,118.83,28.22537607]
[1769388272100,0.05477159,118.87,118.83,25.91683542]
[1769388272301,0.05477159,118.87,118.83,2.30854065]
[1769388274010,0.05477159,118.87,118.82,28.23343682]
[1769388277212,0.05477159,118.87,118.82,25.92489617]
[1769388281113,2.36331224,118.87,118.82,25.92489617]
[1769388281412,0.05477159,118.87,118.82,25.92489617]
[1769388282407,2.36331224,118.87,118.82,25.92489617]
[1769388284812,33.15088937,118.87,118.8,26.01442654]
[1769388285018,33.09611778,118.86,118.8,26.01442654]
[1769388285812,0.05618742,118.84,118.8,26.01442654]
[1769388286719,0.05618742,118.84,118.78,7.5855]
[1769388286720,33.09611778,118.89,118.81,28.28131328]
[1769388286918,33.09611778,118.89,118.81,28.34435238]
[1769388287114,40.67561778,118.88,118.81,26.03581173]
[1769388287314,40.67561778,118.88,118.81,25.97277263]
[1769388288111,40.67561778,118.88,118.83,0.05911461]
[1769388288311,30.78757713,118.88,118.83,0.05911461]
[1769388290510,33.09611778,118.88,118.83,0.05911461]
[1769388292418,30.78757713,118.88,118.83,0.05911461]
[1769388293421,2.30854065,118.89,118.83,26.07253616]
[1769388293612,33.09611778,118.9,118.83,28.38107681]
[1769388294622,33.09611778,118.87,118.83,0.05911461]
[1769388294917,2.30854065,118.85,118.79,26.02645593]
[1769388296216,0.05908087,118.83,118.79,26.02645593]
[1769388297018,30.78757713,118.89,118.82,28.28888954]
[1769388297222,30.78757713,118.89,118.83,28.28888954]
[1769388298520,30.78757713,118.89,118.85,0.06253404]
[1769388299913,33.09611778,118.91,118.85,0.06253404]
[1769388300322,30.78757713,118.91,118.85,28.37080233]
[1769388300522,33.09611778,118.91,118.85,26.06226168]
[1769388301228,33.09611778,118.9,118.85,0.06253404]
[1769388303231,32.53437779,118.88,118.81,26.05618698]
[1769388303429,32.53437779,118.88,118.81,28.36472763]
[1769388304236,30.22583714,118.9,118.82,28.37033475]
[1769388304429,32.53437779,118.9,118.83,2.30854065]
[1769388304631,32.53437779,118.9,118.83,28.37033475]
[1769388305042,32.53437779,118.9,118.85,0.05716625]
[1769388305228,30.22583714,118.9,118.85,0.05716625]
[1769388306241,37.80243714,118.93,118.85,28.43800574]
[1769388306430,2.30854065,118.92,118.85,26.12946509]
[1769388306634,32.53437779,118.91,118.85,26.07229884]
[1769388307034,32.53437779,118.91,118.87,0.05666164]
[1769388307635,2.30854065,118.9,118.83,28.39136994]
[1769388307832,32.53437779,118.9,118.83,28.39136994]
[1769388308031,32.59191135,118.9,118.83,35.97336994]
[1769388308942,32.53437779,118.89,118.83,33.66482929]
[1769388309845,0.06242756,118.87,118.83,33.66482929]
[1769388311146,0.06242756,118.87,118.83,35.97336994]
[1769388317451,32.8880944,118.91,118.85,28.41118727]
[1769388317652,32.8880944,118.91,118.86,2.30854065]
[1769388317854,32.8880944,118.91,118.86,28.41612425]
[1769388318240,32.8880944,118.93,118.87,2.30854065]
[1769388318444,35.19663505,118.93,118.86,26.1075836]
[1769388318651,35.19663505,118.93,118.86,28.41612425]
[1769388318846,35.19663505,118.92,118.86,28.41612425]
[1769388319046,35.19663505,118.92,118.86,26.1075836]
[1769388319248,0.05896337,118.91,118.86,26.1075836]
[1769388322851,0.05896337,118.91,118.86,28.41612425]
[1769388323656,0.05896337,118.91,118.87,28.43948326]
[1769388324154,35.19663505,118.94,118.87,28.43948326]
[1769388324653,0.05698027,118.9,118.87,28.43948326]
[1769388325755,0.05698027,118.9,118.87,26.13094261]
[1769388326957,0.05698027,118.9,118.87,28.43948326]
[1769388327654,0.05698027,118.9,118.87,26.13094261]
[1769388328950,32.94507467,118.9,118.85,26.1573957]
[1769388329147,32.94507467,118.9,118.85,2.30854065]
[1769388331556,32.94507467,118.9,118.85,2.30735399]
[1769388332557,32.94507467,118.9,118.85,28.48118265]
[1769388332949,32.94507467,118.9,118.86,2.30735399]
[1769388333152,0.05698027,118.9,118.86,2.30735399]
[1769388335857,7.5747,118.96,118.88,2.30735399]
[1769388336052,35.0788138,118.95,118.88,2.30735399]
[1769388337660,0.06106351,118.93,118.88,2.30735399]
[1769388339459,0.06106351,118.93,118.88,28.49813166]
[1769388340959,2.3684175,118.93,118.88,26.19077767]
[1769388343064,0.06106351,118.93,118.88,26.19077767]
[1769388344167,35.13987731,118.93,118.86,28.51652841]
[1769388344357,35.0788138,118.92,118.86,26.20917442]
[1769388344563,35.0788138,118.91,118.86,26.20917442]
[1769388345262,0.05474011,118.9,118.86,26.20917442]
[1769388346060,0.05474011,118.9,118.86,28.51652841]
[1769388346359,32.77145981,118.93,118.87,28.58601795]
[1769388351574,32.77145981,118.93,118.87,26.27866396]
[1769388351876,32.77145981,118.93,118.87,28.58601795]
[1769388354677,42.6552138,118.93,118.87,0.06236513]
[1769388354873,32.77145981,118.91,118.87,0.06236513]
[1769388355676,0.06036808,118.9,118.87,0.06236513]
[1769388360476,32.83182789,118.9,118.85,26.245475]
[1769388360783,32.77145981,118.89,118.83,26.26251031]
[1769388360979,32.77145981,118.89,118.84,28.5698643]
[1769388361779,32.77145981,118.89,118.84,26.26251031]
[1769388361980,0.05634391,118.88,118.84,26.26251031]
[1769388362777,35.13515771,118.88,118.81,2.30735399]
[1769388362976,35.0788138,118.87,118.8,28.57517899]
[1769388363369,0.05352959,118.86,118.8,28.57517899]
[1769388363777,31.40018835,118.86,118.8,26.267825]
[1769388363978,33.70754234,118.86,118.8,26.267825]
[1769388364777,31.40018835,118.86,118.8,28.57517899]
[1769388365183,33.70754234,118.86,118.8,28.57517899]
[1769388365683,31.40018835,118.86,118.8,28.57517899]
[1769388367588,31.40018835,118.86,118.8,26.267825]
[1769388368485,31.34665876,118.84,118.78,26.27158858]
[1769388368679,31.34665876,118.84,118.74,39.78926537]
[1769388368680,0.05352959,118.86,118.81,28.58183721]
[1769388368986,31.34665876,118.87,118.81,28.58183721]
[1769388369388,0.06455746,118.85,118.81,28.58183721]
[1769388371093,0.06455746,118.85,118.81,26.27448322]
[1769388372884,0.06455746,118.85,118.79,28.59253782]
[1769388373080,2.37191145,118.85,118.79,26.28518383]
[1769388373590,0.06455746,118.85,118.79,26.28518383]
[1769388374179,0.06455746,118.85,118.81,26.28764677]
[1769388376287,33.38054429,118.84,118.77,26.29284446]
[1769388376492,2.30735399,118.83,118.77,26.29284446]
[1769388376985,2.30735399,118.82,118.77,26.29284446]
[1769388377188,0.05999368,118.81,118.77,26.29284446]
[1769388379293,2.30735399,118.79,118.74,66.09006157]
[1769388379597,2.30735399,118.76,118.71,26.3007962]
[1769388380192,0.05387799,118.75,118.71,26.3007962]
[1769388380698,0.05387799,118.75,118.69,9.89865399]
[1769388380699,2.36123198,118.75,118.69,26.30346499]
[1769388381388,2.30735399,118.74,118.69,26.30346499]
[1769388384293,2.30735399,118.73,118.67,26.31486084]
[1769388384594,33.38054429,118.74,118.67,28.62221483]
[1769388384993,2.30735399,118.72,118.69,0.0587143]
[1769388385191,0.05303882,118.72,118.69,0.0587143]
[1769388385997,2.30735399,118.77,118.69,28.6860578]
[1769388386197,2.30735399,118.77,118.7,2.30735399]
[1769388387198,31.0731903,118.77,118.71,2.30735399]
[1769388387394,9.89275399,118.79,118.72,2.37002194]
[1769388387598,40.96594429,118.79,118.72,2.37002194]